[Event "Božićni turnir u VaraždinskimToplicama 26.12.2025."]
[Site "Varazdinske Toplice, Croatia"]
[Date "2025.12.26"]
[Round "5.2"]
[White "Petrus, Adrian"]
[Black "Radic, Goran"]
[Result "1-0"]
[TimeControl "10"]
[WhiteFideId "14573652"]
[BlackFideId "14533995"]
[WhiteElo "1636"]
[BlackElo "2051"]

1. e4 {[%clk 00:09:59]} d6 {[%clk 00:09:50]} {[%emt 00:00:10]} 2. d4 {[%clk
00:09:57]} {[%emt 00:00:02]} Nf6 {[%clk 00:09:48]} {[%emt 00:00:03]} 3. Nc3
{[%clk 00:09:55]} {[%emt 00:00:02]} Nbd7 {[%clk 00:09:45]} {[%emt 00:00:02]} 4.
Be3 {[%clk 00:09:50]} {[%emt 00:00:05]} e5 {[%clk 00:09:44]} {[%emt 00:00:02]}
5. f3 {[%clk 00:09:47]} {[%emt 00:00:03]} Be7 {[%clk 00:09:42]} {[%emt
00:00:01]} 6. Qd2 {[%clk 00:09:46]} {[%emt 00:00:02]} O-O {[%clk 00:09:40]}
{[%emt 00:00:02]} 7. O-O-O {[%clk 00:09:41]} {[%emt 00:00:05]} c6 {[%clk
00:09:40]} 8. g4 {[%clk 00:09:38]} {[%emt 00:00:03]} b5 {[%clk 00:09:39]}
{[%emt 00:00:01]} 9. h4 {[%clk 00:09:34]} {[%emt 00:00:04]} a5 {[%clk
00:09:34]} {[%emt 00:00:06]} 10. h5 {[%clk 00:09:32]} {[%emt 00:00:01]} a4
{[%clk 00:09:25]} {[%emt 00:00:09]} 11. Kb1 {[%clk 00:09:13]} {[%emt 00:00:19]}
b4 {[%clk 00:09:23]} {[%emt 00:00:02]} 12. Nce2 {[%clk 00:09:11]} {[%emt
00:00:02]} b3 {[%clk 00:09:14]} {[%emt 00:00:09]} 13. cxb3 {[%clk 00:09:00]}
{[%emt 00:00:10]} axb3 {[%clk 00:09:12]} {[%emt 00:00:03]} 14. axb3 {[%clk
00:07:59]} {[%emt 00:01:01]} Qc7 {[%clk 00:08:57]} {[%emt 00:00:16]} 15. Nc1
{[%clk 00:07:43]} {[%emt 00:00:15]} Ba6 {[%clk 00:08:49]} {[%emt 00:00:08]} 16.
Nge2 {[%clk 00:07:29]} {[%emt 00:00:14]} Rfb8 {[%clk 00:08:41]} {[%emt
00:00:08]} 17. Nc3 {[%clk 00:07:25]} {[%emt 00:00:03]} Qa7 {[%clk 00:06:49]}
{[%emt 00:01:52]} 18. dxe5 {[%clk 00:07:13]} {[%emt 00:00:12]} c5 {[%clk
00:06:44]} {[%emt 00:00:05]} 19. exf6 {[%clk 00:06:55]} {[%emt 00:00:18]} Bxf6
{[%clk 00:06:42]} {[%emt 00:00:02]} 20. g5 {[%clk 00:06:46]} {[%emt 00:00:09]}
Be7 {[%clk 00:06:30]} {[%emt 00:00:12]} 21. Nd5 {[%clk 00:06:00]} {[%emt
00:00:45]} Bf8 {[%clk 00:06:15]} {[%emt 00:00:15]} 22. g6 {[%clk 00:05:53]}
{[%emt 00:00:08]} Ne5 {[%clk 00:06:13]} {[%emt 00:00:02]} 23. f4 {[%clk
00:05:48]} {[%emt 00:00:04]} Nf3 {[%clk 00:05:46]} {[%emt 00:00:27]} 24. Qf2
{[%clk 00:05:20]} {[%emt 00:00:22]} Bxf1 {[%clk 00:05:22]} {[%emt 00:00:31]} 25.
Qxf1 {[%clk 00:04:51]} {[%emt 00:00:29]} Qa1+ {[%clk 00:05:12]} {[%emt
00:00:09]} 26. Kc2 {[%clk 00:04:50]} {[%emt 00:00:01]} Nd4+ {[%clk 00:05:01]}
{[%emt 00:00:12]} 27. Bxd4 {[%clk 00:04:22]} {[%emt 00:00:27]} cxd4 {[%clk
00:05:00]} {[%emt 00:00:01]} 28. Nd3 {[%clk 00:04:15]} {[%emt 00:00:07]} Qa2
{[%clk 00:04:44]} {[%emt 00:00:16]} 29. b4 {[%clk 00:03:49]} {[%emt 00:00:25]}
Qc4+ {[%clk 00:04:27]} {[%emt 00:00:18]} 30. Kd2 {[%clk 00:03:46]} {[%emt
00:00:02]} f5 {[%clk 00:04:03]} {[%emt 00:00:25]} 31. Rc1 {[%clk 00:03:36]}
{[%emt 00:00:10]} Qa2 {[%clk 00:03:50]} {[%emt 00:00:13]} 32. gxh7+ {[%clk
00:03:30]} {[%emt 00:00:06]} Kh8 {[%clk 00:03:49]} 33. Qf3 {[%clk 00:03:22]}
{[%emt 00:00:08]} fxe4 {[%clk 00:03:39]} {[%emt 00:00:10]} 34. Qxe4 {[%clk
00:03:16]} {[%emt 00:00:05]} Re8 {[%clk 00:03:39]} 35. Qxd4 {[%clk 00:03:15]}
{[%emt 00:00:02]} Qa7 {[%clk 00:03:27]} {[%emt 00:00:11]} 36. Qxa7 {[%emt
00:00:03]} Rxa7 {[%emt 00:00:01]} 37. Rhe1 {[%clk 00:03:05]} {[%emt 00:00:06]}
Raa8 {[%emt 00:00:09]} 1-0

[Event "Božićni turnir u VaraždinskimToplicama 26.12.2025."]
[Site "Varazdinske Toplice, Croatia"]
[Date "2025.12.26"]
[Round "5.3"]
[White "Vidovic, Sasa"]
[Black "Sagovac, Kristijan"]
[Result "1/2-1/2"]
[TimeControl "10"]
[WhiteFideId "14505010"]
[BlackFideId "14542960"]
[WhiteElo "2202"]
[BlackElo "2014"]

1. b3 {[%clk 00:09:58]} {[%emt 00:00:03]} g6 {[%clk 00:09:59]} {[%emt
00:00:01]} 2. Bb2 {[%clk 00:09:57]} Nf6 {[%clk 00:09:58]} 3. g4 {[%clk
00:09:56]} {[%emt 00:00:01]} Bg7 {[%clk 00:09:55]} {[%emt 00:00:03]} 4. g5
{[%clk 00:09:55]} Nh5 {[%clk 00:09:54]} {[%emt 00:00:01]} 5. Bxg7 Nxg7 {[%clk
00:09:53]} 6. Nc3 {[%clk 00:09:54]} d5 {[%clk 00:09:48]} {[%emt 00:00:04]} 7.
d4 {[%emt 00:00:03]} Bf5 {[%clk 00:09:41]} {[%emt 00:00:07]} 8. Bg2 {[%clk
00:09:44]} {[%emt 00:00:07]} c6 {[%clk 00:09:30]} {[%emt 00:00:11]} 9. Qd2
{[%clk 00:09:40]} {[%emt 00:00:04]} Na6 {[%clk 00:09:15]} {[%emt 00:00:15]} 10.
a3 {[%clk 00:08:39]} {[%emt 00:01:01]} Qd6 {[%clk 00:09:01]} {[%emt 00:00:13]}
11. Nf3 {[%clk 00:08:02]} {[%emt 00:00:38]} Nc7 {[%clk 00:08:14]} {[%emt
00:00:47]} 12. e3 {[%clk 00:07:42]} {[%emt 00:00:20]} Nge6 {[%clk 00:07:31]}
{[%emt 00:00:43]} 13. h4 {[%clk 00:07:29]} {[%emt 00:00:13]} Bg4 {[%clk
00:07:20]} {[%emt 00:00:11]} 14. Nh2 {[%clk 00:06:18]} {[%emt 00:01:11]} Bh5
{[%clk 00:06:52]} {[%emt 00:00:29]} 15. Bf3 {[%clk 00:06:15]} {[%emt 00:00:02]}
Ng7 {[%clk 00:06:42]} {[%emt 00:00:10]} 16. Bxh5 Nxh5 {[%clk 00:06:41]} 17. Nf3
{[%clk 00:05:29]} {[%emt 00:00:41]} Ng7 {[%clk 00:06:13]} {[%emt 00:00:28]} 18.
a4 {[%clk 00:05:12]} {[%emt 00:00:17]} Nf5 {[%clk 00:05:53]} {[%emt 00:00:20]}
19. h5 {[%clk 00:05:04]} {[%emt 00:00:08]} gxh5 {[%clk 00:04:54]} {[%emt
00:00:59]} 20. Rxh5 {[%clk 00:04:51]} {[%emt 00:00:14]} Qg6 {[%clk 00:04:53]}
21. Rh2 {[%clk 00:04:45]} {[%emt 00:00:06]} Ne6 {[%clk 00:04:48]} {[%emt
00:00:04]} 22. O-O-O {[%clk 00:04:03]} {[%emt 00:00:43]} O-O-O {[%clk
00:04:47]} {[%emt 00:00:01]} 23. Ne5 {[%clk 00:03:58]} {[%emt 00:00:05]} Qg7
{[%clk 00:04:34]} {[%emt 00:00:14]} 24. f4 {[%clk 00:03:53]} {[%emt 00:00:05]}
f6 {[%clk 00:04:15]} {[%emt 00:00:19]} 25. Nf3 {[%clk 00:02:39]} {[%emt
00:01:13]} fxg5 {[%clk 00:04:06]} {[%emt 00:00:09]} 26. fxg5 {[%clk 00:02:38]}
Nxg5 {[%clk 00:03:51]} {[%emt 00:00:15]} 27. Ne5 {[%clk 00:02:37]} e6 {[%clk
00:03:28]} {[%emt 00:00:24]} 28. Kb1 {[%emt 00:00:12]} Qe7 {[%clk 00:03:23]}
{[%emt 00:00:02]} 29. Rdh1 {[%clk 00:02:22]} {[%emt 00:00:06]} h6 {[%clk
00:03:12]} {[%emt 00:00:11]} 30. Ng6 {[%clk 00:02:17]} {[%emt 00:00:05]} Qf6
{[%clk 00:03:07]} {[%emt 00:00:06]} 31. Nxh8 {[%clk 00:02:15]} {[%emt
00:00:01]} Nf3 {[%clk 00:02:55]} {[%emt 00:00:12]} 32. Qf2 {[%clk 00:02:00]}
{[%emt 00:00:15]} Nxh2 {[%clk 00:02:52]} {[%emt 00:00:03]} 33. Rxh2 {[%clk
00:01:56]} {[%emt 00:00:04]} Rxh8 {[%clk 00:02:47]} {[%emt 00:00:05]} 34. Ne2
{[%clk 00:01:45]} {[%emt 00:00:11]} Rg8 {[%clk 00:02:36]} {[%emt 00:00:12]} 35.
Nf4 {[%clk 00:01:41]} {[%emt 00:00:04]} e5 {[%clk 00:02:25]} {[%emt 00:00:11]}
36. dxe5 Qxe5 {[%clk 00:02:24]} 37. Rh3 {[%clk 00:01:30]} {[%emt 00:00:07]} Re8
{[%clk 00:02:17]} {[%emt 00:00:07]} 38. Nd3 {[%clk 00:01:27]} {[%emt 00:00:03]}
Qe6 {[%clk 00:01:44]} {[%emt 00:00:33]} 39. Nc5 {[%clk 00:01:26]} {[%emt
00:00:01]} Qg6 {[%clk 00:01:44]} 40. Rf3 {[%clk 00:01:20]} {[%emt 00:00:06]}
Nd6 {[%clk 00:01:37]} {[%emt 00:00:07]} 41. Rf6 {[%clk 00:01:18]} {[%emt
00:00:03]} Ne4 {[%clk 00:01:32]} {[%emt 00:00:05]} 42. Nxe4 {[%clk 00:01:03]}
{[%emt 00:00:15]} Qxe4 {[%clk 00:01:31]} {[%emt 00:00:01]} 43. Rxh6 {[%clk
00:01:00]} {[%emt 00:00:02]} Qxe3 {[%clk 00:01:24]} {[%emt 00:00:07]} 44. Qf5+
{[%clk 00:00:58]} {[%emt 00:00:02]} Kb8 {[%clk 00:01:23]} {[%emt 00:00:02]} 45.
Rh1 {[%clk 00:00:50]} {[%emt 00:00:08]} Qe4 {[%clk 00:01:20]} {[%emt 00:00:03]}
46. Qh5 {[%clk 00:00:49]} {[%emt 00:00:01]} a6 {[%clk 00:01:17]} {[%emt
00:00:03]} 47. Rf1 {[%clk 00:00:48]} Rg8 {[%clk 00:01:15]} {[%emt 00:00:01]} 48.
Qh2+ {[%clk 00:00:46]} {[%emt 00:00:01]} Ka8 {[%clk 00:01:13]} {[%emt
00:00:03]} 49. Qf2 {[%clk 00:00:43]} {[%emt 00:00:03]} Re8 {[%clk 00:01:07]}
{[%emt 00:00:06]} 50. Qc5 {[%clk 00:00:41]} {[%emt 00:00:02]} Qe7 {[%clk
00:01:04]} {[%emt 00:00:03]} 51. Qb6 {[%clk 00:00:39]} {[%emt 00:00:02]} Qd8
{[%clk 00:01:03]} 52. Qc5 {[%clk 00:00:39]} {[%emt 00:00:01]} Qc7 {[%clk
00:01:00]} {[%emt 00:00:03]} 53. a5 {[%clk 00:00:34]} {[%emt 00:00:05]} Rd8
{[%clk 00:00:53]} {[%emt 00:00:07]} 54. Ka2 {[%clk 00:00:30]} {[%emt 00:00:05]}
d4 {[%clk 00:00:52]} {[%emt 00:00:01]} 55. Rf5 {[%clk 00:00:28]} {[%emt
00:00:02]} d3 {[%clk 00:00:48]} {[%emt 00:00:04]} 56. cxd3 {[%clk 00:00:26]}
{[%emt 00:00:01]} Rxd3 {[%clk 00:00:47]} {[%emt 00:00:02]} 57. Rf8+ {[%clk
00:00:24]} {[%emt 00:00:01]} Rd8 {[%clk 00:00:46]} 58. Rxd8+ Qxd8 59. b4 Qd2+
{[%clk 00:00:44]} {[%emt 00:00:02]} 60. Ka3 {[%clk 00:00:21]} Qd3+ {[%clk
00:00:42]} {[%emt 00:00:01]} 61. Kb2 {[%clk 00:00:20]} Qe2+ {[%clk 00:00:41]}
{[%emt 00:00:01]} 62. Ka3 {[%clk 00:00:20]} {[%emt 00:00:01]} Qd3+ 63. Kb2 Qd2+
{[%clk 00:00:38]} {[%emt 00:00:03]} 64. Ka3 {[%clk 00:00:19]} Qd3+ 65. Kb2 Qd5
{[%emt 00:00:03]} 66. Ka2 {[%emt 00:00:03]} Qd8 {[%clk 00:10:00]} {[%emt
00:00:06]} 1/2-1/2

[Event "Božićni turnir u VaraždinskimToplicama 26.12.2025."]
[Site "Varazdinske Toplice, Croatia"]
[Date "2025.12.26"]
[Round "5.4"]
[White "Srsan, Matija"]
[Black "Zelenika, Zoran"]
[Result "0-1"]
[TimeControl "10"]
[WhiteFideId "14520001"]
[BlackFideId "14534452"]
[WhiteElo "1942"]
[BlackElo "2031"]

1. b3 {[%clk 00:09:59]} {[%emt 00:00:02]} Nf6 {[%clk 00:09:57]} {[%emt
00:00:03]} 2. Bb2 {[%clk 00:09:57]} {[%emt 00:00:01]} g6 {[%clk 00:09:50]}
{[%emt 00:00:07]} 3. g4 {[%clk 00:09:50]} {[%emt 00:00:07]} h6 {[%clk
00:09:47]} {[%emt 00:00:03]} 4. Bg2 {[%clk 00:09:31]} {[%emt 00:00:20]} Bg7
{[%clk 00:09:40]} {[%emt 00:00:06]} 5. h3 {[%clk 00:09:28]} {[%emt 00:00:04]}
d5 {[%clk 00:09:33]} {[%emt 00:00:07]} 6. e3 {[%clk 00:09:21]} {[%emt
00:00:07]} O-O {[%clk 00:09:15]} {[%emt 00:00:17]} 7. f4 {[%clk 00:08:32]}
{[%emt 00:00:50]} c5 {[%clk 00:08:59]} {[%emt 00:00:16]} 8. Nf3 {[%clk
00:08:26]} {[%emt 00:00:05]} Nc6 {[%clk 00:08:57]} {[%emt 00:00:02]} 9. g5
{[%clk 00:07:57]} {[%emt 00:00:29]} hxg5 {[%clk 00:08:56]} {[%emt 00:00:01]} 10.
Nxg5 {[%clk 00:07:25]} {[%emt 00:00:32]} e5 {[%clk 00:08:27]} {[%emt 00:00:29]}
11. fxe5 {[%clk 00:06:11]} {[%emt 00:01:14]} Nd7 {[%clk 00:08:24]} {[%emt
00:00:03]} 12. h4 {[%clk 00:05:50]} {[%emt 00:00:21]} Ndxe5 {[%clk 00:08:18]}
{[%emt 00:00:06]} 13. Nc3 {[%clk 00:05:11]} {[%emt 00:00:39]} Bg4 {[%clk
00:08:01]} {[%emt 00:00:16]} 14. Bf3 {[%clk 00:04:59]} {[%emt 00:00:12]} Nxf3+
{[%clk 00:08:00]} {[%emt 00:00:01]} 15. Nxf3 {[%clk 00:04:58]} {[%emt
00:00:02]} Ne5 {[%clk 00:07:56]} {[%emt 00:00:03]} 16. Nxe5 {[%clk 00:04:18]}
{[%emt 00:00:41]} Bxd1 {[%clk 00:07:54]} {[%emt 00:00:02]} 17. Nxd1 {[%clk
00:04:17]} {[%emt 00:00:02]} d4 {[%clk 00:07:46]} {[%emt 00:00:08]} 18. Nd3
{[%clk 00:03:57]} {[%emt 00:00:19]} dxe3 {[%clk 00:07:39]} {[%emt 00:00:07]} 19.
Nxe3 {[%clk 00:03:47]} {[%emt 00:00:09]} Re8 {[%clk 00:07:13]} {[%emt
00:00:26]} 20. O-O-O {[%clk 00:03:38]} {[%emt 00:00:10]} b5 {[%clk 00:06:45]}
{[%emt 00:00:27]} 21. Bxg7 Kxg7 {[%clk 00:06:44]} 22. h5 {[%clk 00:03:03]}
{[%emt 00:00:17]} c4 {[%clk 00:06:29]} {[%emt 00:00:15]} 23. Nb2 {[%clk
00:02:31]} {[%emt 00:00:32]} cxb3 {[%clk 00:06:09]} {[%emt 00:00:20]} 24. axb3
{[%clk 00:02:26]} {[%emt 00:00:05]} Rh8 {[%clk 00:05:53]} {[%emt 00:00:14]} 25.
Rdg1 {[%clk 00:02:23]} {[%emt 00:00:04]} Qd7 {[%clk 00:05:41]} {[%emt
00:00:09]} 26. Nd3 {[%clk 00:02:18]} {[%emt 00:00:09]} Rad8 {[%clk 00:05:33]}
{[%emt 00:00:07]} 27. Rh2 {[%clk 00:02:06]} {[%emt 00:00:12]} Kf8 {[%clk
00:04:28]} {[%emt 00:01:05]} 28. h6 {[%clk 00:02:00]} {[%emt 00:00:07]} Qd4
{[%clk 00:04:19]} {[%emt 00:00:06]} 29. Kb1 {[%clk 00:01:54]} {[%emt 00:00:08]}
Qe4 {[%clk 00:03:41]} {[%emt 00:00:37]} 30. Rg4 {[%clk 00:01:50]} {[%emt
00:00:05]} Qe6 {[%clk 00:03:25]} {[%emt 00:00:15]} 31. Rhh4 {[%clk 00:01:34]}
{[%emt 00:00:17]} Rxd3 {[%clk 00:03:16]} {[%emt 00:00:09]} 32. cxd3 {[%clk
00:01:32]} {[%emt 00:00:03]} Qxb3+ {[%clk 00:03:15]} 33. Kc1 {[%clk 00:01:28]}
{[%emt 00:00:04]} Qa3+ {[%clk 00:03:13]} {[%emt 00:00:03]} 34. Kd1 {[%clk
00:01:26]} {[%emt 00:00:01]} Qd6 {[%clk 00:03:01]} {[%emt 00:00:08]} 35. Rd4
{[%clk 00:01:24]} {[%emt 00:00:06]} Qc7 {[%clk 00:02:57]} {[%emt 00:00:02]} 36.
Nd5 {[%clk 00:01:20]} {[%emt 00:00:05]} Qb7 {[%clk 00:02:55]} 37. Nf6 {[%clk
00:01:10]} {[%emt 00:00:11]} Qf3+ {[%clk 00:02:54]} {[%emt 00:00:02]} 38. Kc2
{[%clk 00:01:04]} {[%emt 00:00:07]} Qxf6 {[%clk 00:02:53]} 39. Kb3 {[%clk
00:00:44]} {[%emt 00:00:21]} Rxh6 {[%emt 00:00:15]} 0-1

[Event "Božićni turnir u VaraždinskimToplicama 26.12.2025."]
[Site "Varazdinske Toplice, Croatia"]
[Date "2025.12.26"]
[Round "5.5"]
[White "Sostaric, Denis"]
[Black "Mesar, Darko"]
[Result "1-0"]
[TimeControl "10"]
[WhiteFideId "14615851"]
[BlackFideId "14531038"]
[WhiteElo "1868"]
[BlackElo "1851"]

1. e4 {[%clk 00:09:59]} {[%emt 00:19:46]} c5 {[%clk 00:09:58]} {[%emt
00:00:03]} 2. Nf3 {[%clk 00:09:58]} {[%emt 00:00:02]} a6 {[%clk 00:09:56]}
{[%emt 00:00:02]} 3. d4 {[%clk 00:09:56]} {[%emt 00:00:02]} cxd4 {[%clk
00:09:54]} {[%emt 00:00:01]} 4. Nxd4 {[%clk 00:09:54]} {[%emt 00:00:02]} Nf6
{[%clk 00:09:52]} {[%emt 00:00:02]} 5. Nc3 {[%clk 00:09:53]} {[%emt 00:00:01]}
e5 {[%clk 00:09:50]} {[%emt 00:00:03]} 6. Nf3 {[%clk 00:09:42]} {[%emt
00:00:11]} Bb4 {[%clk 00:09:47]} {[%emt 00:00:02]} 7. Bc4 {[%clk 00:09:06]}
{[%emt 00:00:36]} O-O {[%clk 00:09:35]} {[%emt 00:00:13]} 8. Bg5 {[%clk
00:08:38]} {[%emt 00:00:26]} d6 {[%clk 00:09:18]} {[%emt 00:00:17]} 9. O-O
{[%clk 00:08:33]} {[%emt 00:00:06]} Bxc3 {[%clk 00:09:11]} {[%emt 00:00:08]} 10.
bxc3 {[%clk 00:08:31]} {[%emt 00:00:02]} h6 {[%clk 00:09:02]} {[%emt 00:00:08]}
11. Bxf6 {[%clk 00:08:18]} {[%emt 00:00:13]} Qxf6 {[%clk 00:08:57]} {[%emt
00:00:06]} 12. Qd3 {[%clk 00:07:42]} {[%emt 00:00:35]} Nc6 {[%clk 00:08:29]}
{[%emt 00:00:28]} 13. Rfd1 {[%clk 00:07:31]} {[%emt 00:00:10]} Rd8 {[%clk
00:08:23]} {[%emt 00:00:06]} 14. Bd5 {[%clk 00:07:27]} {[%emt 00:00:06]} Bg4
{[%clk 00:08:05]} {[%emt 00:00:17]} 15. h3 {[%clk 00:07:24]} {[%emt 00:00:03]}
Bh5 {[%clk 00:07:52]} {[%emt 00:00:12]} 16. g4 {[%clk 00:07:15]} {[%emt
00:00:10]} Bg6 {[%clk 00:07:51]} {[%emt 00:00:01]} 17. Rab1 {[%clk 00:07:00]}
{[%emt 00:00:16]} Qe7 {[%clk 00:07:26]} {[%emt 00:00:24]} 18. Rb6 {[%clk
00:06:47]} {[%emt 00:00:13]} Qc7 {[%clk 00:06:26]} {[%emt 00:01:01]} 19. Rdb1
{[%clk 00:06:42]} {[%emt 00:00:04]} Rab8 {[%clk 00:06:11]} {[%emt 00:00:15]} 20.
Nh4 {[%clk 00:06:23]} {[%emt 00:00:19]} Bh7 {[%clk 00:05:53]} {[%emt 00:00:19]}
21. Nf5 {[%clk 00:06:18]} {[%emt 00:00:04]} Bxf5 {[%clk 00:05:21]} {[%emt
00:00:31]} 22. exf5 {[%clk 00:06:05]} {[%emt 00:00:14]} Rdc8 {[%clk 00:04:40]}
{[%emt 00:00:42]} 23. f6 {[%clk 00:05:45]} {[%emt 00:00:18]} Nd8 {[%clk
00:04:11]} {[%emt 00:00:30]} 24. fxg7 {[%clk 00:04:52]} {[%emt 00:00:53]} Qxc3
{[%clk 00:03:46]} {[%emt 00:00:25]} 25. Qf5 {[%clk 00:04:33]} {[%emt 00:00:19]}
Rc7 {[%clk 00:03:07]} {[%emt 00:00:40]} 26. Be4 {[%clk 00:04:22]} {[%emt
00:00:10]} Kxg7 {[%clk 00:02:49]} {[%emt 00:00:19]} 27. Qh7+ {[%clk 00:04:16]}
{[%emt 00:00:05]} Kf8 {[%clk 00:02:48]} 28. Rxd6 {[%clk 00:04:06]} {[%emt
00:00:11]} Qxh3 {[%clk 00:02:30]} {[%emt 00:00:18]} 29. Qh8+ {[%clk 00:04:03]}
{[%emt 00:00:03]} Ke7 {[%clk 00:02:28]} {[%emt 00:00:02]} 30. Qxe5+ {[%clk
00:03:30]} {[%emt 00:00:34]} Ne6 {[%clk 00:02:21]} {[%emt 00:00:06]} 31. Rxe6+
{[%clk 00:03:28]} {[%emt 00:00:02]} fxe6 {[%clk 00:01:44]} {[%emt 00:00:38]} 32.
Qxc7+ {[%clk 00:03:25]} {[%emt 00:00:02]} Kf6 {[%clk 00:01:41]} {[%emt
00:00:03]} 33. Qxb8 {[%clk 00:03:21]} {[%emt 00:00:05]} Qxg4+ {[%clk 00:01:38]}
{[%emt 00:00:02]} 34. Bg2 {[%clk 00:03:19]} {[%emt 00:00:01]} 1-0

[Event "Božićni turnir u VaraždinskimToplicama 26.12.2025."]
[Site "Varazdinske Toplice, Croatia"]
[Date "2025.12.26"]
[Round "5.6"]
[White "Srnec, Sladjan"]
[Black "Bozinovic, Bogdan"]
[Result "0-1"]
[TimeControl "10"]
[WhiteFideId "14524554"]
[BlackFideId "14502593"]
[WhiteElo "1795"]
[BlackElo "2129"]

1. f4 {[%clk 00:10:00]} {[%emt 00:09:11]} Nh6 {[%clk 00:09:54]} {[%emt
00:00:11]} 2. Nf3 {[%clk 00:09:53]} {[%emt 00:00:08]} e6 {[%clk 00:09:52]}
{[%emt 00:00:02]} 3. e3 {[%clk 00:09:52]} d5 {[%clk 00:09:50]} {[%emt
00:00:01]} 4. d4 {[%clk 00:09:51]} c5 {[%clk 00:09:49]} {[%emt 00:00:02]} 5. c3
{[%clk 00:09:50]} Nc6 {[%clk 00:09:48]} 6. Bd3 {[%clk 00:09:49]} Be7 {[%clk
00:09:42]} {[%emt 00:00:07]} 7. O-O {[%clk 00:09:47]} {[%emt 00:00:02]} b6
{[%clk 00:09:37]} {[%emt 00:00:05]} 8. Bb5 {[%clk 00:09:29]} {[%emt 00:00:19]}
Bd7 {[%clk 00:09:29]} {[%emt 00:00:07]} 9. Bxc6 {[%clk 00:09:18]} {[%emt
00:00:11]} Bxc6 {[%clk 00:09:28]} {[%emt 00:00:01]} 10. Ne5 {[%clk 00:09:17]}
{[%emt 00:00:01]} Bd7 {[%clk 00:09:21]} {[%emt 00:00:08]} 11. Nxd7 {[%clk
00:09:09]} {[%emt 00:00:08]} Qxd7 {[%clk 00:09:19]} {[%emt 00:00:02]} 12. Nd2
{[%clk 00:09:07]} {[%emt 00:00:01]} Nf5 {[%clk 00:09:07]} {[%emt 00:00:12]} 13.
Nf3 {[%clk 00:09:06]} O-O {[%clk 00:08:53]} {[%emt 00:00:14]} 14. Qe2 {[%clk
00:09:06]} Nd6 {[%clk 00:08:51]} {[%emt 00:00:03]} 15. Bd2 {[%clk 00:08:55]}
{[%emt 00:00:11]} Rac8 {[%clk 00:08:44]} {[%emt 00:00:07]} 16. Be1 {[%clk
00:08:51]} {[%emt 00:00:04]} Qb5 {[%clk 00:08:38]} {[%emt 00:00:06]} 17. Qxb5
{[%clk 00:07:31]} {[%emt 00:01:20]} Nxb5 {[%clk 00:08:36]} {[%emt 00:00:02]} 18.
Rf2 {[%clk 00:07:11]} {[%emt 00:00:19]} Nd6 {[%clk 00:08:33]} {[%emt 00:00:04]}
19. Nd2 {[%clk 00:07:08]} {[%emt 00:00:02]} f5 {[%clk 00:08:18]} {[%emt
00:00:15]} 20. Rf3 {[%clk 00:06:45]} {[%emt 00:00:23]} b5 {[%clk 00:08:04]}
{[%emt 00:00:14]} 21. dxc5 {[%clk 00:06:32]} {[%emt 00:00:13]} Rxc5 {[%emt
00:00:02]} 22. Nb3 Rcc8 {[%clk 00:07:54]} {[%emt 00:00:09]} 23. Nd4 {[%clk
00:06:30]} {[%emt 00:00:01]} Kf7 {[%clk 00:07:49]} {[%emt 00:00:05]} 24. a3
{[%clk 00:05:58]} {[%emt 00:00:33]} Bf6 {[%clk 00:07:46]} {[%emt 00:00:02]} 25.
Nb3 {[%clk 00:05:50]} {[%emt 00:00:08]} Nc4 {[%clk 00:07:38]} {[%emt 00:00:09]}
26. Rb1 {[%clk 00:05:34]} {[%emt 00:00:15]} a5 {[%clk 00:07:36]} {[%emt
00:00:02]} 27. Nd2 {[%clk 00:05:19]} {[%emt 00:00:14]} Nd6 {[%clk 00:07:32]}
{[%emt 00:00:06]} 28. h3 {[%clk 00:05:08]} {[%emt 00:00:10]} Rb8 {[%clk
00:06:41]} {[%emt 00:00:51]} 29. g4 {[%clk 00:05:04]} {[%emt 00:00:04]} g6
{[%clk 00:06:40]} {[%emt 00:00:01]} 30. Kg2 {[%clk 00:04:40]} {[%emt 00:00:24]}
b4 {[%clk 00:06:37]} {[%emt 00:00:03]} 31. axb4 {[%clk 00:04:03]} {[%emt
00:00:37]} axb4 {[%clk 00:06:36]} {[%emt 00:00:02]} 32. cxb4 {[%clk 00:03:48]}
{[%emt 00:00:15]} Rxb4 {[%clk 00:06:34]} {[%emt 00:00:01]} 33. b3 {[%clk
00:03:24]} {[%emt 00:00:25]} Rfb8 {[%clk 00:06:26]} {[%emt 00:00:08]} 34. Rc1
{[%clk 00:03:08]} {[%emt 00:00:16]} R4b7 {[%clk 00:06:08]} {[%emt 00:00:18]} 35.
Rc6 {[%clk 00:02:51]} {[%emt 00:00:17]} Ke7 {[%clk 00:06:05]} {[%emt 00:00:03]}
36. b4 {[%clk 00:02:37]} {[%emt 00:00:14]} Kd7 {[%clk 00:06:02]} {[%emt
00:00:02]} 37. Rxd6+ {[%clk 00:01:36]} {[%emt 00:01:01]} Kxd6 {[%clk 00:06:00]}
{[%emt 00:00:02]} 38. Nb3 {[%clk 00:01:30]} {[%emt 00:00:07]} Rxb4 {[%clk
00:05:36]} {[%emt 00:00:24]} 39. Bxb4+ {[%clk 00:01:25]} {[%emt 00:00:04]} Rxb4
{[%clk 00:05:35]} {[%emt 00:00:02]} 40. e4 {[%clk 00:01:04]} {[%emt 00:00:20]}
fxe4 {[%clk 00:05:21]} {[%emt 00:00:14]} 41. Rg3 {[%clk 00:00:52]} {[%emt
00:00:12]} e5 {[%clk 00:05:16]} {[%emt 00:00:05]} 42. g5 {[%clk 00:00:28]}
{[%emt 00:00:24]} exf4 {[%clk 00:05:08]} {[%emt 00:00:08]} 43. Rg4 {[%clk
00:00:13]} {[%emt 00:00:16]} f3+ {[%clk 00:05:00]} {[%emt 00:00:08]} 44. Kf1
{[%clk 00:00:11]} {[%emt 00:00:01]} Rxb3 {[%clk 00:04:51]} {[%emt 00:00:09]} 45.
gxf6 {[%clk 00:00:10]} Ke6 {[%clk 00:04:50]} {[%emt 00:00:01]} 46. Rg5 {[%clk
00:00:07]} {[%emt 00:00:03]} e3 {[%clk 00:04:44]} {[%emt 00:00:06]} 47. Ke1
{[%clk 00:00:05]} {[%emt 00:00:03]} 0-1